[Event "1st Anfield Cup 2022"]
[Site "Kyiv"]
[Date "2022.09.24"]
[Round "3.5"]
[White "Andreev, Eduard"]
[Black "Yeshchenko, Uliana"]
[Result "1/2-1/2"]
[ECO "B30"]
[WhiteElo "2413"]
[BlackElo "2073"]
[Annotator "TA"]
[PlyCount "60"]
[EventDate "2022.09.20"]
[EventType "swiss"]
[EventCountry "UKR"]
[SourceTitle "playchess.com"]
[Source "ChessBase"]
[SourceQuality "1"]
[TimeControl "900+10"]

{[%evp 18,60,27,21,36,26,41,42,62,62,64,64,59,65,65,54,55,54,51,54,52,50,70,56,61,68,65,26,51,84,67,19,33,25,30,40,45,39,129,0,0,0,0,0,0]} 1. e4 {[%emt 0:00:03]} c5 {[%emt 0:00:04]} 2. Nf3 {[%emt 0:00:03]} Nc6 {[%emt 0:00:02]} 3. Bb5 {[%emt 0:00:02]} e6 {[%emt 0:00:03]} 4. O-O {[%emt 0:00:08]} Nge7 {[%emt 0:00:02]} 5. Nc3 {[%emt 0:00:05]} a6 {[%emt 0:00:06]} 6. Bxc6 {[%emt 0:00:09]} Nxc6 {[%emt 0:00:02]} 7. d4 {[%emt 0:00:07]} cxd4 {[%emt 0:00:18]} 8. Nxd4 {[%emt 0:00:02]} Be7 {[%emt 0:00:26]} 9. Nxc6 {[%emt 0:01:31]} dxc6 {[%emt 0:00:04]} 10. Qg4 {[%emt 0:02:49] [#] And now Rd1 would win. was the old line (10.e5).} Bf6 {[%emt 0:01:11] B30: Sicilian: 2...Nc6 3 Bb5, lines without ...g6.} 11. Qg3 {[%emt 0:00:09]} e5 {[%emt 0:00:33]} 12. Be3 {[%emt 0:02:10]} b6 {[%emt 0:02:25] White is slightly better.} 13. Rad1 {[%emt 0:01:25]} Qc7 {[%emt 0:00:15]} 14. f4 {[%emt 0:00:49]} O-O {[%emt 0:01:12]} 15. f5 {[%emt 0:00:02] [#]} Bb7 $146 {[%emt 0:00:12]} ({Predecessor:} 15... a5 16. Qf2 Ba6 17. Rfe1 Rab8 18. Na4 c5 19. Nc3 Bb7 20. g4 Qe7 21. Re2 Rfd8 {0-1 (27) Hokkanen,P (2217)-Tuominen,T (2063) Salo 2020}) 16. Qf2 {[%emt 0:00:43] White has more active pieces. The black rooks are badly placed.} c5 {[%emt 0:00:11]} 17. g4 {[%emt 0:01:20] [#] Black must now prevent g5.} Qe7 {[%emt 0:02:21]} 18. Nd5 {[%emt 0:01:40]} Bxd5 {[%emt 0:00:04]} 19. Rxd5 {[%emt 0:00:02]} Bg5 {[%emt 0:02:02]} 20. Bxg5 {[%emt 0:01:50]} Qxg5 {[%emt 0:00:02]} 21. Qg3 $1 {[%emt 0:00:02]} Rad8 {[%emt 0:03:36]} 22. h4 {[%emt 0:00:02]} (22. Rxe5 $5 {[%cal Rf5f6]} Rde8 23. Rxe8 Rxe8 24. Qf4 $14) 22... Qe7 {[%emt 0:00:01]} 23. Rfd1 {[%emt 0:00:13]} h6 {[%emt 0:00:41]} 24. g5 {[%emt 0:00:52]} (24. c4 $14 {might be stronger.}) 24... hxg5 {[%emt 0:01:08]} 25. hxg5 {[%emt 0:00:02]} Rxd5 {[%emt 0:00:57]} 26. Rxd5 $11 {[%emt 0:00:02] KQR-KQR} Rd8 {[%emt 0:00:03]} 27. f6 {[%emt 0:01:10]} Qe8 {[%emt 0:00:01]} (27... Qc7 $14) 28. c4 {[%emt 0:00:24]} ({Much weaker is} 28. Qxe5 $6 Qxe5 29. Rxe5 Rd2 $11) ({White should try} 28. b3 $16) 28... Rxd5 {[%emt 0:00:29] The position is equal.} 29. exd5 {[%emt 0:00:43]} Qa4 {[%csl LRa2,LRc4]} 30. b3 {[%emt 0:01:13]} Qxa2 {[%emt 0:00:22] Weighted Error Value: White=0.13 (very precise) /Black=0.10 (very precise)} 1/2-1/2

[Event "1st Anfield Cup 2022"]
[Site "Kyiv"]
[Date "2022.09.24"]
[Round "3.6"]
[White "Taborov, Boris"]
[Black "Frolov, Artur"]
[Result "1/2-1/2"]
[ECO "A56"]
[WhiteElo "2328"]
[BlackElo "2379"]
[Annotator "TA"]
[PlyCount "14"]
[EventDate "2022.09.20"]
[EventType "swiss"]
[EventCountry "UKR"]
[SourceTitle "playchess.com"]
[Source "ChessBase"]
[SourceQuality "1"]
[TimeControl "900+10"]

{[%evp 9,14,88,93,70,120,79,138]} 1. d4 {[%emt 0:00:01]} Nf6 {[%emt 0:00:01]} 2. c4 {[%emt 0:00:01]} c5 {[%emt 0:00:00]} 3. d5 {[%emt 0:00:06]} e5 {[%emt 0:00:02]} 4. Nc3 {[%emt 0:00:02]} d6 {[%emt 0:00:01]} 5. e4 {[%emt 0:00:02]} g6 {[%emt 0:00:02]} 6. Nf3 {[%emt 0:00:02] A56: Czech Benoni.} h5 {[%emt 0:00:02]} ({Black should play} 6... Bg7 $14) 7. Be2 {[%emt 0:00:03] [#]} Ng8 $146 {Weighted Error Value: White=0.32/Black=0.28 (precise)} (7... Bg4 $142) ({Predecessor:} 7... Bh6 8. Bxh6 Rxh6 9. Qd2 Rh8 10. Ng5 Nh7 11. Nxh7 Rxh7 12. f4 Nd7 13. Nb5 Ke7 14. g3 {½-½ (51) Punin,A (2252)-Frolov,A (2405) Lvov 2017}) 1/2-1/2

[Event "1st Anfield Cup 2022"]
[Site "Kyiv"]
[Date "2022.09.24"]
[Round "4.1"]
[White "Vysochin, Spartak"]
[Black "Samunenkov, Ihor"]
[Result "1-0"]
[ECO "B13"]
[WhiteElo "2512"]
[BlackElo "2469"]
[Annotator "TA"]
[PlyCount "55"]
[EventDate "2022.09.20"]
[EventType "swiss"]
[EventCountry "UKR"]
[SourceTitle "playchess.com"]
[Source "ChessBase"]
[SourceQuality "1"]
[TimeControl "900+10"]

{[%evp 14,55,17,15,17,12,14,14,16,13,20,0,0,0,0,0,42,31,39,26,41,70,19,0,61,67,37,49,99,103,136,127,202,151,216,216,430,216,5214,851,29991,29990,29990,29991]} 1. e4 {[%emt 0:00:03]} c6 {[%emt 0:00:25]} 2. d4 {[%emt 0:00:06]} d5 {[%emt 0:00:02]} 3. exd5 {[%emt 0:00:02]} cxd5 {[%emt 0:00:02]} 4. Bd3 {[%emt 0:00:01]} Nf6 {[%emt 0:00:35]} 5. h3 {[%emt 0:00:07]} Nc6 {[%emt 0:00:35]} 6. c3 {[%emt 0:00:04]} e5 {[%emt 0:00:17]} 7. dxe5 {[%emt 0:00:04]} Nxe5 {[%emt 0:00:02]} 8. Nf3 {[%emt 0:00:07]} Nxd3+ {[%emt 0:01:04] B13: Caro-Kann: Exchange Variation and Panov-Botvinnik Attack.} 9. Qxd3 {[%emt 0:00:03]} Bd6 {[%emt 0:00:23] now supersedes 9...Be7.} 10. O-O {[%emt 0:00:05]} O-O {[%emt 0:00:03] The position is equal.} 11. Bg5 {[%emt 0:00:03]} h6 {[%emt 0:00:30]} 12. Bh4 {[%emt 0:00:08]} g5 {[%emt 0:02:36]} 13. Bg3 {[%emt 0:00:01]} Bxg3 {[%emt 0:00:09]} 14. fxg3 {[%emt 0:00:04]} Ne4 {[%emt 0:00:08]} 15. Nd4 {[%emt 0:00:47]} Qb6 {[%emt 0:00:51]} 16. Nd2 {[%emt 0:02:37]} Qxb2 {[%emt 0:01:10]} 17. Nxe4 {[%emt 0:01:12]} dxe4 {[%emt 0:00:02]} 18. Qe3 {[%emt 0:01:10] [#]} Bd7 $146 {[%emt 0:02:09]} (18... Re8 $11) ({Predecessor:} 18... Re8 19. Rf6 Be6 20. Raf1 Bc4 21. Rxh6 Bxf1 22. Qxg5+ Kf8 23. Rh8# {1-0 (23) Ivic,V (2581)-Vitenberg,N (2320) Chess.com INT 2020}) 19. Rfb1 $14 {[%emt 0:01:03][%cal Bf1b1,Bb1b7,Bb7c7,Bc7c8][%mdl 32]} Qa3 {[%emt 0:00:03]} 20. Rxb7 {[%emt 0:00:05]} Rfd8 {[%emt 0:01:49]} ({Black should try} 20... Rad8 $14) 21. Rf1 $16 {[%emt 0:01:24] White has more active pieces.} Qxa2 {[%emt 0:01:08]} 22. Qxe4 {[%emt 0:00:57]} Rab8 {[%emt 0:00:30]} (22... Re8 $16 23. Qf3 Be6) 23. Rc7 {[%emt 0:03:25] [#] Strongly threatening c4.} Rbc8 {[%emt 0:02:14]} (23... Re8 $16 24. Qf3 g4 25. hxg4 Be6) 24. Qe7 $18 {[%emt 0:00:48][%cal Oc3c4] Black must now prevent c4!} Qd5 {[%emt 0:00:18]} (24... Be6 25. Rxa7 Re8) 25. Kh2 {[%emt 0:02:59]} (25. Rf6 $142 Bxh3 26. gxh3 Rxc7 27. Qxc7) 25... a5 $2 {[%emt 0:00:32]} (25... Be6 26. Nxe6 (26. Rxa7 Rd7 $18) 26... Qxe6 27. Rxf7 (27. Qxf7+ Qxf7 28. Rcxf7 a5 $16) (27. Rxa7 Qxe7 28. Rxe7 Rf8 $16) 27... Qxe7 28. Rcxe7 (28. Rfxe7 Rxc7 29. Rxc7 Ra8 $14) 28... Rd6 29. Rg7+ (29. Rxa7 Rxc3 30. Rg7+ Kh8 $18) 29... Kh8 30. Rh7+ (30. Rxa7 Rxc3 31. Rh7+ Kg8 $18) 30... Kg8 31. Reg7+ (31. Rxa7 Rxc3 32. Rhb7 Rc8 $18) 31... Kf8 32. Rxa7 Kg8 33. Rag7+ Kf8 34. Rxg5 Rxc3) 26. Rf6 {[%emt 0:00:21]} (26. c4 $142 Qxd4 27. Qxf7+ Kh8 {[#]} 28. Rf6 $1 Qxf6 29. Qxf6+ Kh7 30. Qe7+ Kg8 31. c5) 26... a4 {[%emt 0:01:14]} 27. c4 {[%emt 0:00:19]} Re8 {[%emt 0:00:24]} 28. Rxc8 {[%emt 0:00:27] Weighted Error Value: White=0.37/Black=0.71} ({Weaker is} 28. cxd5 Rxe7 29. Rb7 Re4 $14) 1-0

[Event "1st Anfield Cup 2022"]
[Site "Kyiv"]
[Date "2022.09.24"]
[Round "4.2"]
[White "Kislinsky, Alexey"]
[Black "Malakhatko, Vadim"]
[Result "1/2-1/2"]
[ECO "C07"]
[WhiteElo "2301"]
[BlackElo "2448"]
[Annotator "TA"]
[PlyCount "36"]
[EventDate "2022.09.20"]
[EventType "swiss"]
[EventCountry "UKR"]
[SourceTitle "playchess.com"]
[Source "ChessBase"]
[SourceQuality "1"]
[TimeControl "900+10"]

{[%evp 14,22,22,8,22,15,23,13,19,27,40]} 1. e4 {[%emt 0:00:02]} e6 {[%emt 0:00:01]} 2. d4 {[%emt 0:00:02]} d5 {[%emt 0:00:03]} 3. Nd2 {[%emt 0:00:03]} c5 {[%emt 0:00:02]} 4. exd5 {[%emt 0:00:02]} Qxd5 {[%emt 0:00:03]} 5. Ngf3 {[%emt 0:00:02]} cxd4 {[%emt 0:00:03]} 6. Bc4 {[%emt 0:00:03]} Qd8 {[%emt 0:00:03]} 7. O-O {[%emt 0:00:03]} Nc6 {[%emt 0:00:02]} 8. Nb3 {[%emt 0:00:02]} a6 {[%emt 0:00:02] C07: French Tarrasch: 3...c5, 4 Ngf3 and 4 exd5 Qxd5.} 9. Nbxd4 {[%emt 0:00:02]} Nxd4 {[%emt 0:00:03]} 10. Qxd4 {[%emt 0:00:03]} Qxd4 {[%emt 0:00:02]} 11. Nxd4 {[%emt 0:00:02]} Bd7 $1 {[%emt 0:00:01] [#] Black did not feel at home in the position after the opening. 11...Bd7 scores better than 11...Nf6.} {Predecessor:} 12. Bf4 $146 Rc8 13. Be2 Bc5 14. Rad1 Ne7 15. c3 Ba4 16. Nb3 Bb6 17. Rd2 Bc7 18. Bxc7 Rxc7 {½-½ (31) Li,D (2561)-Xu,Y (2554) Xinghua 2021} 1/2-1/2

[Event "1st Anfield Cup 2022"]
[Site "Kyiv"]
[Date "2022.09.24"]
[Round "4.3"]
[White "Grinev, Valeriy"]
[Black "Shishkin, Vadim"]
[Result "1/2-1/2"]
[ECO "D85"]
[WhiteElo "2425"]
[BlackElo "2417"]
[Annotator "TA"]
[PlyCount "64"]
[EventDate "2022.09.20"]
[EventType "swiss"]
[EventCountry "UKR"]
[SourceTitle "playchess.com"]
[Source "ChessBase"]
[SourceQuality "1"]
[TimeControl "900+10"]

{[%evp 19,64,6,25,19,33,27,47,47,43,30,43,37,56,33,52,14,30,20,42,52,38,0,12,0,0,0,0,-12,0,0,0,-3,0,-227,-217,-330,-262,-260,-142,-197,-127,-142,-108,-129,-92,-179,-125]} 1. d4 {[%emt 0:00:04]} Nf6 {[%emt 0:00:04]} 2. c4 {[%emt 0:00:03]} g6 {[%emt 0:00:04]} 3. Nc3 {[%emt 0:00:04]} d5 {[%emt 0:00:02]} 4. cxd5 {[%emt 0:00:03]} Nxd5 {[%emt 0:00:02]} 5. e4 {[%emt 0:00:04]} Nxc3 {[%emt 0:00:04]} 6. bxc3 {[%emt 0:00:03]} Bg7 {[%emt 0:00:06]} 7. Nf3 {[%emt 0:00:04]} c5 {[%emt 0:00:12]} 8. Be3 {[%emt 0:00:04]} Qa5 {[%emt 0:00:16]} 9. Qd2 {[%emt 0:00:04]} O-O {[%emt 0:00:51]} 10. Rc1 {[%emt 0:00:03]} Nd7 {[%emt 0:01:06]} 11. Bd3 {[%emt 0:00:48] D85: Exchange Grünfeld: Unusual White 7th moves and lines with 7 Nf3.} Nf6 {[%emt 0:01:13]} 12. h3 {[%emt 0:00:13] [#]} (12. dxc5 Rd8 13. Qc2 Ng4 $15) 12... e6 $146 {[%emt 0:01:06]} ({Predecessor:} 12... cxd4 13. cxd4 Qxd2+ 14. Kxd2 Rd8 15. Rc7 Ne8 16. Rc2 Bd7 17. Rb1 b6 18. Rbc1 Nd6 {1-0 (57) Yilmaz,M (2630)-Lagno,K (2546) Chess.com INT 2021}) 13. O-O {[%emt 0:00:34] White is slightly better.} (13. Ne5 {keeps more tension.} b5 14. Bg5 Bb7 15. Bxf6 Bxf6 16. Nd7) 13... b6 {[%emt 0:00:20]} 14. Qe2 {[%emt 0:05:11]} c4 {[%emt 0:03:50]} 15. Bb1 {[%emt 0:00:23]} ({Much weaker is} 15. Bxc4 Nxe4 16. Qb2 Bb7 $15) 15... Bb7 {[%emt 0:00:12]} 16. Bg5 {[%emt 0:01:09]} Nd7 {[%emt 0:01:07]} 17. Qe3 {[%emt 0:01:06]} ({Much worse is} 17. Qxc4 Ba6 18. Qb3 Bxf1 19. Kxf1 Rab8 $11) 17... f6 {[%emt 0:01:07]} 18. Bh6 {[%emt 0:00:12]} e5 {[%emt 0:00:54]} 19. Bxg7 {[%emt 0:01:59]} Kxg7 {[%emt 0:00:02]} 20. Nh4 {[%emt 0:00:07]} Rae8 {[%emt 0:01:30]} 21. Qg3 {[%emt 0:01:27]} Kh8 {[%emt 0:00:22]} 22. Rce1 {[%emt 0:00:03]} Qa3 {[%emt 0:01:00]} 23. Re3 {[%emt 0:00:39]} Qe7 {[%emt 0:00:29]} 24. f4 {[%emt 0:00:19]} exd4 {[%emt 0:00:49]} 25. cxd4 {[%emt 0:00:04]} f5 {[%emt 0:00:01][%cal Rf5e4]} 26. d5 $2 {[%emt 0:01:30] [#]} (26. Rfe1 $1 $11 fxe4 27. Bxe4 Bxe4 28. Rxe4 Qxe4 29. Rxe4 Rxe4 30. f5) 26... Bxd5 $1 $19 {[%emt 0:00:59]} ({Not} 26... fxe4 27. Rxe4 Qc5+ 28. Kh2 Rxe4 29. Bxe4 $11) 27. Kh1 {[%emt 0:02:09]} (27. Rfe1 $142 fxe4 28. Bxe4 Bxe4 29. Rxe4 Qc5+ 30. Qf2 Qxf2+ 31. Kxf2) 27... Nf6 {[%emt 0:00:57]} 28. e5 {[%emt 0:00:44]} Ne4 {[%emt 0:00:11]} (28... Nh5 $19 29. Qf2 Ng7) 29. Bxe4 $17 {[%emt 0:00:03]} Bxe4 {[%emt 0:00:02]} (29... fxe4 $19 30. Rd1 Rd8) 30. Nf3 {[%emt 0:00:07] Against g5} Bxf3 {[%emt 0:00:07]} 31. Qxf3 {[%emt 0:00:02]} Rc8 {[%emt 0:00:10]} 32. Rc3 {[%emt 0:00:03]} (32. Rd1 $17 {was worth a try.}) 32... Rfd8 {[%emt 0:00:13] Weighted Error Value: White=0.27 (precise) /Black=0.25 (precise)} (32... b5 $19 33. a3 Rfd8) 1/2-1/2

[Event "1st Anfield Cup 2022"]
[Site "Kyiv"]
[Date "2022.09.24"]
[Round "4.4"]
[White "Yeshchenko, Uliana"]
[Black "Pavlov, Sergey"]
[Result "0-1"]
[ECO "A45"]
[WhiteElo "2073"]
[BlackElo "2333"]
[Annotator "TA"]
[PlyCount "79"]
[EventDate "2022.09.20"]
[EventType "swiss"]
[EventCountry "UKR"]
[SourceTitle "playchess.com"]
[Source "ChessBase"]
[SourceQuality "1"]
[TimeControl "900+10"]

{[%evp 9,79,0,6,0,0,-43,-23,-41,-23,-27,-27,-31,-16,-2,9,-6,0,-9,-5,-73,-71,-222,-212,-299,-60,-195,-62,-180,-59,-60,-56,-178,-171,-455,-439,-447,-400,-627,-338,-491,-339,-346,-351,-434,-429,-583,-563,-1043,-768,-748,-751,-1150,-1126,-1650,-1408,-2064,-1914,-3007,-3927,-3701,-2314,-2629,-2273,-4202,-4470,-2895,-1822,-29996,-29997,-29997,-29995,-29997]} 1. d4 {[%emt 0:00:04]} Nf6 {[%emt 0:00:05]} 2. Nc3 {[%emt 0:00:04]} d5 {[%emt 0:00:14]} 3. Bf4 {[%emt 0:00:02]} g6 {[%emt 0:00:06]} 4. e3 {[%emt 0:00:08]} Bg7 {[%emt 0:00:02]} 5. Nf3 {[%emt 0:00:07]} O-O {[%emt 0:00:17][%cal Oc7c5]} 6. h4 {[%emt 0:00:02] D00: 1 d4 d5: Unusual lines.} c5 {[%emt 0:00:09]} 7. Be2 {[%emt 0:00:13]} Nc6 {[%emt 0:02:08]} 8. Ne5 {[%emt 0:00:07] Black has an edge.} Qb6 {[%emt 0:00:41][%csl LRb2,LRd4]} 9. Nxc6 {[%emt 0:01:00]} bxc6 {[%emt 0:00:12]} 10. Na4 $1 {[%emt 0:00:40][%csl LRb6,LRc5]} Qa5+ {[%emt 0:00:33]} 11. c3 {[%emt 0:00:01]} cxd4 {[%emt 0:02:35]} 12. exd4 {[%emt 0:00:02]} Nd7 {[%emt 0:01:20]} 13. b4 {[%emt 0:02:06]} Qd8 {[%emt 0:00:04] [#]} 14. Qc1 $146 {[%emt 0:01:52]} (14. O-O $11 {remains equal.}) ({Predecessor:} 14. h5 e5 15. Be3 a5 16. b5 cxb5 17. Bxb5 Ba6 18. Rb1 exd4 19. cxd4 Nf6 20. hxg6 fxg6 {1-0 (62) Starostits,I (2441)-Perez Garcia,R (2061) Seville 2022}) 14... a5 {[%emt 0:01:09] [#] aiming for ...axb4.} 15. Bh6 $2 {[%emt 0:03:07]} (15. b5 $17 {was called for.}) 15... axb4 $19 {[%emt 0:00:46]} 16. h5 {[%emt 0:00:13]} (16. Bxg7 {is a better defense.} Kxg7 17. Nc5) 16... Nf6 $2 {[%emt 0:02:36]} (16... Rxa4 $19 17. Bxg7 Kxg7 18. hxg6 hxg6 19. Qh6+ Kf6) 17. hxg6 {[%emt 0:00:43]} fxg6 {[%emt 0:00:03]} (17... Rxa4 $2 18. gxh7+ Nxh7 19. Bxg7 $18) (17... Bxh6 $19 18. Qxh6 fxg6) 18. Nc5 {[%emt 0:00:16]} ({White has to play} 18. Bxg7 $15 Kxg7 19. Nc5) 18... bxc3 {[%emt 0:00:18]} (18... Bxh6 $19 19. Rxh6 Qa5 20. cxb4 Qxb4+ 21. Qd2 Qxd2+ 22. Kxd2 Nd7) 19. Bxg7 $15 {[%emt 0:00:42]} Kxg7 {[%emt 0:00:01]} 20. Qh6+ {[%emt 0:00:02] White is now going downhill.} ({White should try} 20. Qxc3 $15 Qa5 21. Qxa5 Rxa5 22. a4) 20... Kg8 $19 {[%emt 0:02:14]} 21. g4 $2 {[%emt 0:00:28]} (21. Qe3) 21... Rf7 {[%emt 0:00:15]} 22. Nd3 {[%emt 0:01:44]} Nd7 {[%emt 0:00:49] White must now prevent ...Ra4.} ({And not} 22... Nxg4 23. Bxg4 Bxg4 24. Ne5 $17) 23. Nf4 {[%emt 0:00:25]} (23. Qe3 $142) 23... Qf8 {[%emt 0:00:47]} 24. Qh4 {[%emt 0:00:26]} (24. Nd3 $142) 24... Qg7 {[%emt 0:00:51]} 25. Ne6 {[%emt 0:00:01]} Qf6 {[%emt 0:00:01]} 26. Ng5 {[%emt 0:00:01]} Rg7 {[%emt 0:00:06]} 27. Qh6 {[%emt 0:02:59][%cal Rg5h7]} Nf8 {[%emt 0:00:13]} 28. Rd1 {[%emt 0:00:47]} c2 {[%emt 0:00:21]} 29. Rc1 {[%emt 0:00:11]} Rxa2 {[%emt 0:00:06] [#] Strongly threatening ...Qf4.} 30. Rh3 {[%emt 0:00:01]} Qxd4 {[%emt 0:00:43] Threatens to win with ...Ra1.} 31. Rd3 {[%emt 0:00:16]} Qb2 {[%emt 0:00:11]} 32. Kd2 {[%emt 0:00:06]} Qb4+ {[%emt 0:00:01]} 33. Ke3 {[%emt 0:00:07]} e5 {[%emt 0:00:07][%csl Ge5][%cal Rb4f4,Be7e5,Be5e4][%mdl 32]} 34. Qh2 {[%emt 0:00:39] Against Qf4+} Qe7 {[%emt 0:00:22]} 35. Qh6 {[%emt 0:00:11]} Qf6 {[%emt 0:00:06][%csl Ge5][%cal Rf6f4]} 36. Nh3 {[%emt 0:00:06] Against Qf4+} e4 {[%emt 0:00:15]} 37. Rb3 {[%emt 0:00:03]} d4+ {[%emt 0:00:10]} 38. Kxe4 {[%emt 0:00:04]} Re7+ {[%emt 0:00:11]} 39. Kd3 {[%emt 0:00:05]} Qe6 {[%emt 0:00:08]} 40. Kxd4 {Weighted Error Value: White=1.84/Black=0.76} 0-1

[Event "1st Anfield Cup 2022"]
[Site "Kyiv"]
[Date "2022.09.24"]
[Round "4.5"]
[White "Skliarov, Viktor"]
[Black "Maliutin, Oleksandr"]
[Result "0-1"]
[ECO "B53"]
[WhiteElo "2384"]
[BlackElo "2232"]
[Annotator "TA"]
[PlyCount "134"]
[EventDate "2022.09.20"]
[EventType "swiss"]
[EventCountry "UKR"]
[SourceTitle "playchess.com"]
[Source "ChessBase"]
[SourceQuality "1"]
[TimeControl "900+10"]

{[%evp 9,134,5,44,3,27,0,0,0,0,0,0,0,0,0,0,-12,-12,-8,0,0,0,0,0,0,0,-34,-32,-64,-65,-66,-64,-68,-14,-10,-8,-8,-8,-8,-8,-8,-8,-8,-8,-8,-8,-9,-8,-8,-8,-8,-8,-8,0,-18,-18,-27,-27,-52,-52,-62,-62,-55,-55,-55,0,0,0,0,0,0,-1,-2,-2,-58,-65,-65,-65,-84,-42,-42,-42,-42,-42,-42,-17,-18,-18,-18,-18,-18,-18,-720,-675,-29945,-64,-81,-81,-29956,-29958,-29955,-29959,-29954,-29957,-29957,-29959,-29960,-29961,-29961,-29962,-29960,-29961,-29968,-29970,-29976,-29977,-29978,-29979,-29985,-29986,-29986,-29987,-29988,-29989,-29989,-29990,-29990,-29991]} 1. e4 {[%emt 0:00:03]} c5 {[%emt 0:00:01]} 2. Nf3 {[%emt 0:00:05]} d6 {[%emt 0:00:02]} 3. d4 {[%emt 0:00:06]} cxd4 {[%emt 0:00:01]} 4. Qxd4 {[%emt 0:00:02]} Nc6 {[%emt 0:00:38]} 5. Bb5 {[%emt 0:00:03]} Bg4 {[%emt 0:00:34]} 6. Qd3 {[%emt 0:01:30] B53: Sicilian: 2...d6: Lines with Qxd4.} Nf6 {[%emt 0:01:14]} 7. Nd4 {[%emt 0:00:48]} Bd7 {[%emt 0:00:04]} 8. Nc3 {[%emt 0:00:37] The position is equal.} g6 {[%emt 0:00:12] [#]} 9. Nxc6 $146 {[%emt 0:02:50]} ({Predecessor:} 9. Be3 Bg7 10. f3 Ne5 11. Bxd7+ Qxd7 12. Qb5 O-O 13. h3 Qxb5 14. Ndxb5 a6 15. Nd4 Nc4 16. Bc1 Nxe4 17. Nxe4 Bxd4 {0-1 (25) Calcagno,S-Weinfeld,K IECC email 1996}) 9... Bxc6 {[%emt 0:00:28]} 10. Bg5 {[%emt 0:01:42]} Bg7 {[%emt 0:00:16]} 11. O-O {[%emt 0:00:16]} O-O {[%emt 0:00:17]} 12. Rad1 {[%emt 0:00:39]} Qa5 {[%emt 0:01:13][%cal Of6e4]} 13. Bxc6 {[%emt 0:02:24] Black must now prevent Qb5.} bxc6 {[%emt 0:00:16]} 14. Qd2 {[%emt 0:00:01][%cal Oc3d5]} Rfe8 {[%emt 0:04:00][%cal Bf8e8,Be8e4,Be4e2][%mdl 32]} 15. Bxf6 {[%emt 0:01:33]} Bxf6 {[%emt 0:00:03]} 16. Nd5 $1 {[%emt 0:00:01]} Qxa2 {[%emt 0:01:10]} 17. Nxf6+ {[%emt 0:02:01]} exf6 {[%emt 0:00:02]} 18. b3 {[%emt 0:00:01]} Rxe4 {[%emt 0:00:42]} 19. Qc3 {[%emt 0:00:25] Strongly threatening Ra1.} Re2 {[%emt 0:01:21]} 20. Qxc6 {[%emt 0:01:50]} Rae8 {[%emt 0:00:42]} (20... Rd8 $15) 21. Rxd6 $11 {[%emt 0:00:46]} Qxc2 {[%emt 0:01:10]} (21... f5 {with more complications.} 22. Rd2 Qb2 23. h4 h5) 22. Qxc2 {[%emt 0:00:36]} Rxc2 {[%emt 0:00:02]} 23. Rxf6 {[%emt 0:00:08][%mdl 4096] Endgame KRR-KRR} Rb2 {[%emt 0:00:53]} 24. Ra6 {[%emt 0:00:07]} Re7 {[%emt 0:00:10]} 25. g3 {[%emt 0:00:10]} Rxb3 {[%emt 0:00:08]} 26. Rfa1 {[%emt 0:00:01]} Rbb7 {[%emt 0:00:18]} 27. h4 {[%emt 0:00:02]} h5 {[%emt 0:00:09]} 28. Kg2 {[%emt 0:00:01]} Kf8 {[%emt 0:00:20]} 29. R1a4 {[%emt 0:00:06]} Ke8 {[%emt 0:00:19]} 30. Ra3 {[%emt 0:00:42]} Kd8 {[%emt 0:00:04]} 31. R3a4 {[%emt 0:00:11]} Kc8 {[%emt 0:00:05]} 32. Rc4+ {[%emt 0:00:15]} Kb8 {[%emt 0:00:30]} 33. Rcc6 {[%emt 0:00:18]} Rb2 {[%emt 0:00:20]} 34. Rf6 {[%emt 0:00:15]} Kb7 {[%emt 0:00:08]} 35. Ra4 {[%emt 0:00:01]} Rb6 {[%emt 0:00:07]} 36. Rf3 {[%emt 0:00:01]} f5 {[%emt 0:00:12]} (36... a6 $15) 37. Rfa3 {[%emt 0:00:07]} a6 {[%emt 0:00:06]} 38. Kf3 {[%emt 0:00:09]} Ree6 {[%emt 0:00:14]} 39. Kf4 {[%emt 0:00:15]} Rb2 {[%emt 0:00:07]} 40. f3 {[%emt 0:00:04]} Rb5 {[%emt 0:00:20]} 41. g4 {[%emt 0:00:30]} ({Better is} 41. Rd4 $11) 41... fxg4 $15 {[%emt 0:00:37]} 42. fxg4 {[%emt 0:00:01]} Reb6 {[%emt 0:00:27] Black is more active.} 43. gxh5 {[%emt 0:00:07]} Rxh5 {[%emt 0:00:03]} 44. Kg3 {[%emt 0:00:19]} Rhb5 {[%emt 0:00:21]} 45. Ra1 {[%emt 0:00:13]} Rb3+ {[%emt 0:00:20]} 46. Kg4 {[%emt 0:00:10]} R6b4+ {[%emt 0:00:21]} 47. Rxb4+ {[%emt 0:00:06]} Rxb4+ $11 {[%emt 0:00:01] KR-KR} 48. Kg5 {[%emt 0:00:00]} Rb6 {[%emt 0:00:38]} 49. Kh6 {[%emt 0:00:01]} Rd6 {[%emt 0:00:20]} 50. h5 $2 {[%mdl 8192]} (50. Kg5 $11) 50... gxh5+ $19 51. Kxh5 Kb6 $2 {[%emt 0:00:21]} (51... Rd4 $1 {mates} 52. Kg5 Kb6 53. Rb1+ Kc6 54. Ra1 Kb5 55. Rb1+ Rb4 56. Rf1 a5 57. Rf5+ Ka4 58. Rf6 Kb3 59. Rf3+ Kb2 60. Rf2+ Ka3 61. Rh2 a4 62. Rh3+ Ka2 63. Rh7 a3 64. Kf5 Ka1 65. Kg6 a2 66. Rf7 Kb2 67. Rf2+ Kb3 68. Rf3+ Ka4 69. Rf6 Rb5 70. Rf1 Rb6+ 71. Kh5 Rb1 72. Rf4+ Rb4 73. Rf1 Rb1 74. Rf4+ Rb4 75. Rf1 Rb1) 52. Rb1+ {[%emt 0:00:54]} Kc5 {[%emt 0:00:12] ( -> ...a5)} 53. Rc1+ $2 {[%emt 0:00:11][%mdl 8192] [#]} (53. Ra1 $17) 53... Kb4 $1 {[%emt 0:00:25] Black mates.} 54. Rb1+ {[%emt 0:00:01]} Kc3 {[%emt 0:00:08]} 55. Rc1+ {[%emt 0:00:12]} Kb3 {[%emt 0:00:09]} 56. Rb1+ {[%emt 0:00:14]} Kc2 {[%emt 0:00:09]} 57. Rb8 {[%emt 0:00:16]} a5 {[%emt 0:00:12][%cal Ba6a5,Ba5a4,Ba4a3,Ba3a2][%mdl 32]} 58. Ra8 {[%emt 0:00:01]} Rd5+ {[%emt 0:00:03]} 59. Kg4 {[%emt 0:00:01]} Rb5 {[%emt 0:00:31]} 60. Kf3 {[%emt 0:00:05] [#]} Kb3 $1 {[%emt 0:00:01]} 61. Ke2 {[%emt 0:00:06]} a4 {[%emt 0:00:10]} 62. Kd2 {[%emt 0:00:36]} a3 63. Kc1 a2 {[%emt 0:00:08]} 64. Ra7 {[%emt 0:00:13]} Rb4 {[%emt 0:00:02]} 65. Ra8 {[%emt 0:00:03]} Rc4+ {[%emt 0:00:03]} 66. Kd2 {[%emt 0:00:00]} Ra4 {[%emt 0:00:10]} 67. Rb8+ {[%emt 0:00:01]} Ka3 {[%emt 0:00:03] Weighted Error Value: White=0.37/Black=0.19 (very precise)} 0-1